[Event "*** Titled Tuesday Blitz AM"]
[Site "Chess.com"]
[Date "2020.01.07"]
[Round "5"]
[White "lucasran"]
[Black "OparinGrigoriy"]
[Result "0-1"]
[WhiteElo "2700"]
[BlackElo "3031"]
[TimeControl "180+2"]
[EndTime "10:08:54 PST"]
[Termination "OparinGrigoriy won by resignation"]

1. Nf3 {[%clk 0:03:01.9]} 1... Nf6 {[%clk 0:03:00.8]} 2. c4 {[%clk 0:03:02.9]}
2... e6 {[%clk 0:03:01.5]} 3. g3 {[%clk 0:03:04.2]} 3... d5 {[%clk 0:03:03.1]}
4. Bg2 {[%clk 0:03:05.6]} 4... dxc4 {[%clk 0:03:04.4]} 5. Qa4+ {[%clk
0:03:06.3]} 5... Bd7 {[%clk 0:03:04.5]} 6. Qxc4 {[%clk 0:03:07.1]} 6... c5
{[%clk 0:03:06.2]} 7. Ne5 {[%clk 0:03:07.5]} 7... Qc8 {[%clk 0:03:07.8]} 8. O-O
{[%clk 0:03:06.8]} 8... Nc6 {[%clk 0:03:09.3]} 9. Nxd7 {[%clk 0:03:07.5]} 9...
Qxd7 {[%clk 0:03:11.2]} 10. Nc3 {[%clk 0:03:04.1]} 10... Be7 {[%clk 0:03:12.1]}
11. Qa4 {[%clk 0:03:04.8]} 11... Rc8 {[%clk 0:03:12.5]} 12. d3 {[%clk
0:03:03.9]} 12... O-O {[%clk 0:03:12.1]} 13. Be3 {[%clk 0:03:03.6]} 13... Rfd8
{[%clk 0:03:07.2]} 14. Rac1 {[%clk 0:03:03.1]} 14... b6 {[%clk 0:03:07.8]} 15.
Rfd1 {[%clk 0:03:01.9]} 15... Ne8 {[%clk 0:02:54.8]} 16. a3 {[%clk 0:02:53.1]}
16... Nd6 {[%clk 0:02:55.1]} 17. Bh3 {[%clk 0:02:06]} 17... Bf6 {[%clk
0:02:46.1]} 18. b4 {[%clk 0:01:52.4]} 18... cxb4 {[%clk 0:02:24.4]} 19. axb4
{[%clk 0:01:54.3]} 19... b5 {[%clk 0:02:21]} 20. Qb3 {[%clk 0:01:40.8]} 20...
Nd4 {[%clk 0:02:15.5]} 21. Bxd4 {[%clk 0:01:37.1]} 21... Bxd4 {[%clk 0:02:17.4]}
22. Bg2 {[%clk 0:00:48.8]} 22... h5 {[%clk 0:02:03.8]} 23. Ne4 {[%clk 0:00:48]}
23... Nxe4 {[%clk 0:02:01.8]} 24. Bxe4 {[%clk 0:00:49.9]} 24... h4 {[%clk
0:02:03.3]} 25. e3 {[%clk 0:00:46.8]} 25... Bf6 {[%clk 0:02:04.7]} 26. d4 {[%clk
0:00:47.3]} 26... g6 {[%clk 0:02:03.8]} 27. Kg2 {[%clk 0:00:47.3]} 27... Kg7
{[%clk 0:02:04.7]} 28. Qa3 {[%clk 0:00:41]} 28... Be7 {[%clk 0:02:05]} 29. Qa6
{[%clk 0:00:35.8]} 29... Bxb4 {[%clk 0:01:59.6]} 30. Bc6 {[%clk 0:00:29.3]}
30... Qe7 {[%clk 0:01:58.8]} 31. Qxb5 {[%clk 0:00:27.1]} 31... a5 {[%clk
0:01:57.9]} 32. Bf3 {[%clk 0:00:26.1]} 32... Rb8 {[%clk 0:01:55.5]} 33. Qa6
{[%clk 0:00:25.2]} 33... Rd6 {[%clk 0:01:51.5]} 34. Rc6 {[%clk 0:00:25.6]} 34...
Rxc6 {[%clk 0:01:51.5]} 35. Qxc6 {[%clk 0:00:27.5]} 35... Qd6 {[%clk 0:01:41.1]}
36. Qxd6 {[%clk 0:00:22.6]} 36... Bxd6 {[%clk 0:01:43]} 37. Ra1 {[%clk
0:00:23.4]} 37... Bb4 {[%clk 0:01:44.3]} 38. Ra2 {[%clk 0:00:24.8]} 38... hxg3
{[%clk 0:01:44.4]} 39. hxg3 {[%clk 0:00:25.8]} 39... Rc8 {[%clk 0:01:46]} 40. d5
{[%clk 0:00:25.7]} 40... e5 {[%clk 0:01:47.1]} 41. g4 {[%clk 0:00:22.7]} 41...
Kf6 {[%clk 0:01:47.4]} 42. Be4 {[%clk 0:00:21.5]} 42... Ke7 {[%clk 0:01:48.7]}
43. Kf3 {[%clk 0:00:18.5]} 43... Kd6 {[%clk 0:01:50.2]} 44. g5 {[%clk
0:00:18.9]} 44... Rc1 {[%clk 0:01:48.7]} 45. Ke2 {[%clk 0:00:17.7]} 45... Rg1
{[%clk 0:01:46.1]} 46. f4 {[%clk 0:00:18.4]} 46... Rc1 {[%clk 0:01:35.6]} 47.
Kf3 {[%clk 0:00:17.9]} 47... Rc3 {[%clk 0:01:34.9]} 48. f5 {[%clk 0:00:18.1]}
48... gxf5 {[%clk 0:01:33.9]} 49. Bxf5 {[%clk 0:00:20]} 49... Kxd5 {[%clk
0:01:35.1]} 50. g6 {[%clk 0:00:18.9]} 50... fxg6 {[%clk 0:01:34.7]} 51. Bxg6
{[%clk 0:00:20.8]} 51... Kd6 {[%clk 0:01:29.4]} 52. Bf7 {[%clk 0:00:21.6]} 52...
Ba3 {[%clk 0:01:23.7]} 53. Ke2 {[%clk 0:00:21.3]} 53... Bb4 {[%clk 0:01:15.4]}
54. e4 {[%clk 0:00:20.4]} 54... Rh3 {[%clk 0:01:13.1]} 55. Bd5 {[%clk
0:00:20.3]} 55... Kc5 {[%clk 0:01:11.2]} 56. Kd1 {[%clk 0:00:21]} 56... Kd4
{[%clk 0:01:09.8]} 57. Kc2 {[%clk 0:00:22.4]} 57... Rc3+ {[%clk 0:01:06.1]} 58.
Kb2 {[%clk 0:00:23.6]} 58... Re3 {[%clk 0:01:07]} 59. Kc2 {[%clk 0:00:23.1]}
59... Re1 {[%clk 0:01:08.1]} 60. Kb3 {[%clk 0:00:24]} 60... Re3+ {[%clk
0:01:05]} 61. Ka4 {[%clk 0:00:24.6]} 61... Rxe4 {[%clk 0:01:03]} 62. Bxe4 {[%clk
0:00:23]} 62... Kxe4 {[%clk 0:01:04.9]} 63. Re2+ {[%clk 0:00:23.5]} 63... Kd4
{[%clk 0:01:04.9]} 64. Kb3 {[%clk 0:00:23.3]} 64... e4 {[%clk 0:01:05.3]} 65.
Kc2 {[%clk 0:00:24.3]} 65... a4 {[%clk 0:01:06.8]} 66. Rh2 {[%clk 0:00:22.8]}
66... a3 {[%clk 0:01:08.3]} 67. Rh8 {[%clk 0:00:20.7]} 67... e3 {[%clk
0:01:05.5]} 68. Re8 {[%clk 0:00:20.6]} 68... Bc5 {[%clk 0:01:04.2]} 69. Ra8
{[%clk 0:00:09.6]} 69... Ke4 {[%clk 0:00:59.3]} 70. Re8+ {[%clk 0:00:08]} 70...
Kf3 {[%clk 0:00:58.8]} 71. Kd3 {[%clk 0:00:07]} 71... a2 {[%clk 0:00:57.7]} 72.
Ra8 {[%clk 0:00:04.8]} 72... e2 {[%clk 0:00:59.2]} 73. Rxa2 {[%clk 0:00:05.6]}
73... e1=Q {[%clk 0:00:59.9]} 74. Rc2 {[%clk 0:00:05.9]} 74... Qe4+ {[%clk
0:00:59.8]} 75. Kc3 {[%clk 0:00:07]} 75... Qb4+ {[%clk 0:00:59.6]} 0-1

[Event "*** Titled Tuesday Blitz AM"]
[Site "Chess.com"]
[Date "2020.01.07"]
[Round "5"]
[White "boasovietica"]
[Black "sganerdene"]
[Result "0-1"]
[WhiteElo "2438"]
[BlackElo "2654"]
[TimeControl "180+2"]
[EndTime "10:09:07 PST"]
[Termination "sganerdene won on time"]

1. Nf3 {[%clk 0:03:01.9]} 1... Nf6 {[%clk 0:03:00.5]} 2. b3 {[%clk 0:03:02.2]}
2... g6 {[%clk 0:03:01.4]} 3. Bb2 {[%clk 0:03:03.3]} 3... Bg7 {[%clk 0:03:02.8]}
4. g3 {[%clk 0:03:04.5]} 4... O-O {[%clk 0:03:04.4]} 5. Bg2 {[%clk 0:03:05.7]}
5... c5 {[%clk 0:03:05.7]} 6. O-O {[%clk 0:03:06.5]} 6... Nc6 {[%clk 0:03:06.1]}
7. c4 {[%clk 0:03:07.5]} 7... d6 {[%clk 0:03:05.3]} 8. d4 {[%clk 0:03:06.6]}
8... cxd4 {[%clk 0:03:06.1]} 9. Nxd4 {[%clk 0:03:06.7]} 9... Bd7 {[%clk
0:03:06.5]} 10. Nc3 {[%clk 0:03:00.4]} 10... Rc8 {[%clk 0:03:07.3]} 11. Qd2
{[%clk 0:02:45.2]} 11... Qa5 {[%clk 0:03:07.9]} 12. Rfd1 {[%clk 0:02:41.3]}
12... Qh5 {[%clk 0:03:08.7]} 13. Rac1 {[%clk 0:02:25.5]} 13... Nxd4 {[%clk
0:03:03.1]} 14. Qxd4 {[%clk 0:02:19.8]} 14... Ng4 {[%clk 0:03:04.3]} 15. Qxa7
{[%clk 0:02:12.1]} 15... Qxh2+ {[%clk 0:03:04.6]} 16. Kf1 {[%clk 0:02:11.9]}
16... Bc6 {[%clk 0:02:59]} 17. Nd5 {[%clk 0:02:07.9]} 17... Bxd5 {[%clk
0:02:55.9]} 18. cxd5 {[%clk 0:02:04.5]} 18... Bxb2 {[%clk 0:02:55]} 19. Rxc8
{[%clk 0:02:01.4]} 19... Rxc8 {[%clk 0:02:56]} 20. Qxb7 {[%clk 0:02:03]} 20...
Rf8 {[%clk 0:02:52.9]} 21. Qxe7 {[%clk 0:02:03]} 21... Be5 {[%clk 0:02:53.4]}
22. Qg5 {[%clk 0:01:46.9]} 22... h5 {[%clk 0:02:41.3]} 23. f3 {[%clk 0:01:38]}
23... Nf6 {[%clk 0:02:34.4]} 24. f4 {[%clk 0:01:38.4]} 24... Nh7 {[%clk
0:02:05]} 25. Qe7 {[%clk 0:01:29.8]} 25... Bf6 {[%clk 0:02:06.1]} 26. Qxd6
{[%clk 0:01:30.6]} 26... Qxg3 {[%clk 0:02:06.6]} 27. Rd3 {[%clk 0:01:23.4]}
27... Qg4 {[%clk 0:02:06.1]} 28. Bh3 {[%clk 0:01:16.4]} 28... Qh4 {[%clk
0:02:06.6]} 29. Qc7 {[%clk 0:01:09.5]} 29... Rd8 {[%clk 0:02:04.6]} 30. b4
{[%clk 0:01:01.1]} 30... Be7 {[%clk 0:02:04.2]} 31. b5 {[%clk 0:01:00.2]} 31...
Bd6 {[%clk 0:02:04.8]} 32. Qc4 {[%clk 0:00:58.1]} 32... Ra8 {[%clk 0:01:33]} 33.
a4 {[%clk 0:00:55]} 33... Qxf4+ {[%clk 0:01:27.9]} 34. Qxf4 {[%clk 0:00:54.9]}
34... Bxf4 {[%clk 0:01:29.4]} 35. d6 {[%clk 0:00:52.5]} 35... Rd8 {[%clk
0:01:05.2]} 36. d7 {[%clk 0:00:51]} 36... Bc7 {[%clk 0:01:02.4]} 37. Rc3 {[%clk
0:00:45.1]} 37... Ba5 {[%clk 0:01:03.4]} 38. Rc6 {[%clk 0:00:44.4]} 38... Ng5
{[%clk 0:01:04.1]} 39. Ra6 {[%clk 0:00:30.3]} 39... Bc3 {[%clk 0:00:53.2]} 40.
b6 {[%clk 0:00:24.9]} 40... Ne4 {[%clk 0:00:15.7]} 41. b7 {[%clk 0:00:19]} 41...
Nc5 {[%clk 0:00:16.8]} 42. Rb6 {[%clk 0:00:15.4]} 42... Be5 {[%clk 0:00:13.3]}
43. a5 {[%clk 0:00:14.3]} 43... Bb8 {[%clk 0:00:13.6]} 44. a6 {[%clk 0:00:11.1]}
44... Kf8 {[%clk 0:00:14.9]} 45. Rc6 {[%clk 0:00:11.4]} 45... Ba7 {[%clk
0:00:13.4]} 46. Rc8 {[%clk 0:00:11.2]} 46... Ke7 {[%clk 0:00:14.4]} 47. Ra8
{[%clk 0:00:11.9]} 47... Nxa6 {[%clk 0:00:13.1]} 48. Rxa7 {[%clk 0:00:11.5]}
48... Nb8 {[%clk 0:00:14.3]} 49. e4 {[%clk 0:00:11.1]} 49... Kd6 {[%clk
0:00:14]} 50. Ke2 {[%clk 0:00:10.3]} 50... Kc7 {[%clk 0:00:14.8]} 51. Ra5 {[%clk
0:00:09.7]} 51... Kxb7 {[%clk 0:00:15.5]} 52. Rd5 {[%clk 0:00:09.9]} 52... Kc7
{[%clk 0:00:16.5]} 53. Rc5+ {[%clk 0:00:10.6]} 53... Kd6 {[%clk 0:00:17.7]} 54.
Rd5+ {[%clk 0:00:12]} 54... Ke7 {[%clk 0:00:18.5]} 55. Re5+ {[%clk 0:00:13.3]}
55... Kf8 {[%clk 0:00:19.9]} 56. Rd5 {[%clk 0:00:13.2]} 56... Nc6 {[%clk
0:00:20.5]} 57. Rd6 {[%clk 0:00:12.3]} 57... Ne5 {[%clk 0:00:21]} 58. Rd5 {[%clk
0:00:09.9]} 58... f6 {[%clk 0:00:21.4]} 59. Ke3 {[%clk 0:00:11.1]} 59... Ke7
{[%clk 0:00:22.2]} 60. Kf4 {[%clk 0:00:06.7]} 60... Nxd7 {[%clk 0:00:22.9]} 61.
Ra5 {[%clk 0:00:05.3]} 61... Ne5 {[%clk 0:00:24.1]} 62. Ra7+ {[%clk 0:00:06.2]}
62... Kf8 {[%clk 0:00:25.4]} 63. Be6 {[%clk 0:00:05.9]} 63... Rd3 {[%clk
0:00:17.9]} 0-1

[Event "*** Titled Tuesday Blitz AM"]
[Site "Chess.com"]
[Date "2020.01.07"]
[Round "5"]
[White "PaulfromSPb"]
[Black "Flawless_Fighter"]
[Result "1/2-1/2"]
[WhiteElo "2669"]
[BlackElo "2456"]
[TimeControl "180+2"]
[EndTime "10:09:12 PST"]
[Termination "Game drawn - insufficient material"]

1. d4 {[%clk 0:03:01.7]} 1... Nf6 {[%clk 0:03:00.4]} 2. Bf4 {[%clk 0:03:01.4]}
2... e6 {[%clk 0:03:01.1]} 3. e3 {[%clk 0:03:02.4]} 3... c5 {[%clk 0:03:02.7]}
4. c3 {[%clk 0:03:03.3]} 4... cxd4 {[%clk 0:03:02.3]} 5. exd4 {[%clk 0:03:03.2]}
5... b6 {[%clk 0:03:03.2]} 6. Nd2 {[%clk 0:03:03.7]} 6... Bb7 {[%clk 0:03:00.1]}
7. Ngf3 {[%clk 0:02:57.4]} 7... Be7 {[%clk 0:03:00.2]} 8. Be2 {[%clk 0:02:56.7]}
8... O-O {[%clk 0:03:00.8]} 9. O-O {[%clk 0:02:57.8]} 9... d6 {[%clk 0:03:00.1]}
10. a4 {[%clk 0:02:56.7]} 10... a6 {[%clk 0:03:00.2]} 11. Nc4 {[%clk 0:02:55.3]}
11... Nh5 {[%clk 0:02:47.8]} 12. Be3 {[%clk 0:02:53.9]} 12... Nf6 {[%clk
0:02:47.5]} 13. Qb3 {[%clk 0:02:50.6]} 13... Nbd7 {[%clk 0:02:46.9]} 14. Bf4
{[%clk 0:02:51.5]} 14... Qc7 {[%clk 0:02:46.2]} 15. Rfe1 {[%clk 0:02:48.6]}
15... Bd5 {[%clk 0:02:45.8]} 16. Nfd2 {[%clk 0:02:46.5]} 16... Rfb8 {[%clk
0:02:25.8]} 17. Qa3 {[%clk 0:02:47.1]} 17... Ne8 {[%clk 0:02:25.3]} 18. Bf1
{[%clk 0:02:45.5]} 18... b5 {[%clk 0:02:22.1]} 19. Ne3 {[%clk 0:02:45.7]} 19...
Bb7 {[%clk 0:02:01.7]} 20. axb5 {[%clk 0:02:45.9]} 20... axb5 {[%clk 0:02:02.2]}
21. Qb3 {[%clk 0:02:47]} 21... Rxa1 {[%clk 0:01:56.4]} 22. Rxa1 {[%clk
0:02:48.9]} 22... Bc6 {[%clk 0:01:50.5]} 23. d5 {[%clk 0:02:49]} 23... Nc5
{[%clk 0:01:50.6]} 24. Qb4 {[%clk 0:02:37.3]} 24... Bd7 {[%clk 0:01:42.9]} 25.
dxe6 {[%clk 0:02:34.6]} 25... fxe6 {[%clk 0:01:42.6]} 26. Bg3 {[%clk 0:02:33.6]}
26... h6 {[%clk 0:01:36.9]} 27. Ne4 {[%clk 0:02:21.5]} 27... Nxe4 {[%clk
0:01:34.5]} 28. Qxe4 {[%clk 0:02:23.4]} 28... Nf6 {[%clk 0:01:35.5]} 29. Qd4
{[%clk 0:02:06.4]} 29... e5 {[%clk 0:01:24.3]} 30. Qd2 {[%clk 0:02:02.7]} 30...
Be6 {[%clk 0:01:22.2]} 31. Bd3 {[%clk 0:02:00.9]} 31... d5 {[%clk 0:01:19.1]}
32. Nf5 {[%clk 0:01:58.2]} 32... Bxf5 {[%clk 0:01:11.6]} 33. Bxf5 {[%clk
0:01:58.7]} 33... b4 {[%clk 0:01:00]} 34. cxb4 {[%clk 0:01:49.8]} 34... Bxb4
{[%clk 0:00:58.1]} 35. Qe2 {[%clk 0:01:49.2]} 35... Bd6 {[%clk 0:00:56.3]} 36.
h3 {[%clk 0:01:48.4]} 36... e4 {[%clk 0:00:55.8]} 37. Be6+ {[%clk 0:01:40.8]}
37... Kh8 {[%clk 0:00:55.5]} 38. Bxd6 {[%clk 0:01:35.1]} 38... Qxd6 {[%clk
0:00:57.4]} 39. Bf5 {[%clk 0:01:36.2]} 39... Qe5 {[%clk 0:00:57.8]} 40. g4
{[%clk 0:01:36.4]} 40... Rxb2 {[%clk 0:00:43.3]} 41. Ra8+ {[%clk 0:01:31.8]}
41... Rb8 {[%clk 0:00:43]} 42. Qa6 {[%clk 0:01:33.2]} 42... Qe8 {[%clk
0:00:40.4]} 43. Ra7 {[%clk 0:01:30.7]} 43... e3 {[%clk 0:00:34.4]} 44. Qe2
{[%clk 0:01:26.6]} 44... exf2+ {[%clk 0:00:32.2]} 45. Qxf2 {[%clk 0:01:28.5]}
45... Ne4 {[%clk 0:00:29.8]} 46. Qd4 {[%clk 0:01:26.7]} 46... Nf6 {[%clk
0:00:24.8]} 47. Qf2 {[%clk 0:01:22.1]} 47... Qe5 {[%clk 0:00:25.4]} 48. Ra2
{[%clk 0:01:19]} 48... Ne4 {[%clk 0:00:23.3]} 49. Qe3 {[%clk 0:01:15.6]} 49...
Rb1+ {[%clk 0:00:20.2]} 50. Kg2 {[%clk 0:01:16.1]} 50... Rb2+ {[%clk 0:00:19.9]}
51. Rxb2 {[%clk 0:01:17.7]} 51... Qxb2+ {[%clk 0:00:21.7]} 52. Kg1 {[%clk
0:01:19.1]} 52... Qb1+ {[%clk 0:00:21.4]} 53. Kg2 {[%clk 0:01:20]} 53... Qc2+
{[%clk 0:00:22.7]} 54. Kg1 {[%clk 0:01:21.1]} 54... Qd1+ {[%clk 0:00:23.6]} 55.
Kg2 {[%clk 0:01:20.2]} 55... Qd2+ {[%clk 0:00:13.7]} 56. Qxd2 {[%clk 0:01:20.7]}
56... Nxd2 {[%clk 0:00:15.3]} 57. Kf2 {[%clk 0:01:22]} 57... Ne4+ {[%clk
0:00:12.5]} 58. Ke3 {[%clk 0:01:22.6]} 58... Nf6 {[%clk 0:00:08.8]} 59. Kd4
{[%clk 0:01:22.7]} 59... Kg8 {[%clk 0:00:09.7]} 60. Be6+ {[%clk 0:01:23.9]}
60... Kf8 {[%clk 0:00:11.1]} 61. Bxd5 {[%clk 0:01:25.1]} 61... Ke7 {[%clk
0:00:12.3]} 62. Bb3 {[%clk 0:01:23]} 62... Nh7 {[%clk 0:00:13]} 63. Ke3 {[%clk
0:01:22.2]} 63... Kf6 {[%clk 0:00:12.6]} 64. Kf4 {[%clk 0:01:23]} 64... Ng5
{[%clk 0:00:13.4]} 65. h4 {[%clk 0:01:24.2]} 65... Ne6+ {[%clk 0:00:12.7]} 66.
Ke3 {[%clk 0:01:24.9]} 66... Ke5 {[%clk 0:00:12.9]} 67. Bc2 {[%clk 0:01:24.5]}
67... Nf4 {[%clk 0:00:13.2]} 68. Be4 {[%clk 0:01:23.6]} 68... Ne6 {[%clk
0:00:13.5]} 69. Bf5 {[%clk 0:01:23.6]} 69... Nc7 {[%clk 0:00:14]} 70. Kf3 {[%clk
0:01:23.2]} 70... Nd5 {[%clk 0:00:15]} 71. Bc8 {[%clk 0:01:23.6]} 71... Ne7
{[%clk 0:00:10.8]} 72. Bb7 {[%clk 0:01:24.1]} 72... Ng6 {[%clk 0:00:10.8]} 73.
Kg3 {[%clk 0:01:25.5]} 73... Kd4 {[%clk 0:00:11.4]} 74. h5 {[%clk 0:01:23.7]}
74... Ne7 {[%clk 0:00:06.5]} 75. Kf4 {[%clk 0:01:25.6]} 75... Kc5 {[%clk
0:00:07.3]} 76. Ke5 {[%clk 0:01:26.8]} 76... Ng8 {[%clk 0:00:07.8]} 77. Be4
{[%clk 0:01:25.4]} 77... Nf6 {[%clk 0:00:08.1]} 78. Bf5 {[%clk 0:01:26.9]} 78...
Kc4 {[%clk 0:00:04.9]} 79. Ke6 {[%clk 0:01:28.1]} 79... Kd4 {[%clk 0:00:05.1]}
80. Kf7 {[%clk 0:01:29.4]} 80... Ke5 {[%clk 0:00:02.8]} 81. Bc8 {[%clk 0:01:27]}
81... Kf4 {[%clk 0:00:02.5]} 82. Kxg7 {[%clk 0:01:28]} 82... Kg5 {[%clk
0:00:03.7]} 83. Bf5 {[%clk 0:01:26.3]} 83... Nxh5+ {[%clk 0:00:04.8]} 84. gxh5
{[%clk 0:01:25.4]} 84... Kxh5 {[%clk 0:00:05.8]} 85. Bg6+ {[%clk 0:01:25.7]}
85... Kg5 {[%clk 0:00:07.2]} 86. Kh7 {[%clk 0:01:27.2]} 86... h5 {[%clk
0:00:08.5]} 87. Bxh5 {[%clk 0:01:29.1]} 1/2-1/2

[Event "*** Titled Tuesday Blitz AM"]
[Site "Chess.com"]
[Date "2020.01.07"]
[Round "5"]
[White "Witik"]
[Black "sergeikim"]
[Result "1-0"]
[WhiteElo "2669"]
[BlackElo "2441"]
[TimeControl "180+2"]
[EndTime "10:09:12 PST"]
[Termination "Witik won by resignation"]

1. e4 {[%clk 0:03:01.9]} 1... e5 {[%clk 0:03:00.6]} 2. Nf3 {[%clk 0:03:02.6]}
2... Nc6 {[%clk 0:03:01.4]} 3. Nc3 {[%clk 0:03:03.4]} 3... Nf6 {[%clk
0:03:01.4]} 4. Bb5 {[%clk 0:03:03.9]} 4... Bb4 {[%clk 0:03:01.1]} 5. O-O {[%clk
0:03:04.9]} 5... O-O {[%clk 0:03:01.4]} 6. d3 {[%clk 0:03:05.6]} 6... d6 {[%clk
0:03:01.7]} 7. Ne2 {[%clk 0:03:06.7]} 7... h6 {[%clk 0:02:58.8]} 8. c3 {[%clk
0:03:04.7]} 8... Ba5 {[%clk 0:02:58.7]} 9. Ng3 {[%clk 0:03:04.4]} 9... a6 {[%clk
0:02:54.4]} 10. Bxc6 {[%clk 0:02:31.7]} 10... bxc6 {[%clk 0:02:54.7]} 11. d4
{[%clk 0:02:32.9]} 11... exd4 {[%clk 0:02:51.3]} 12. Nxd4 {[%clk 0:02:32.4]}
12... Bd7 {[%clk 0:02:49.4]} 13. Qf3 {[%clk 0:02:20.5]} 13... Bb6 {[%clk
0:02:35]} 14. Ndf5 {[%clk 0:02:17.5]} 14... Kh7 {[%clk 0:02:24.3]} 15. Be3
{[%clk 0:02:07.7]} 15... Rb8 {[%clk 0:02:18]} 16. Bxb6 {[%clk 0:02:02.9]} 16...
Rxb6 {[%clk 0:02:17.1]} 17. b3 {[%clk 0:02:04.3]} 17... Re8 {[%clk 0:02:13.7]}
18. Rfe1 {[%clk 0:01:57.8]} 18... Rb5 {[%clk 0:02:09.7]} 19. Qd3 {[%clk
0:01:46.7]} 19... Kg8 {[%clk 0:02:02]} 20. c4 {[%clk 0:01:43.4]} 20... Rb8
{[%clk 0:01:46.1]} 21. f3 {[%clk 0:01:25.7]} 21... a5 {[%clk 0:01:38.2]} 22. f4
{[%clk 0:01:23.4]} 22... Ra8 {[%clk 0:00:58.5]} 23. Rad1 {[%clk 0:01:12.8]}
23... Bxf5 {[%clk 0:00:56.8]} 24. Nxf5 {[%clk 0:01:13.4]} 24... Qc8 {[%clk
0:00:52.9]} 25. Qg3 {[%clk 0:00:57.7]} 25... Nh5 {[%clk 0:00:46.5]} 26. Nxh6+
{[%clk 0:00:47.7]} 26... Kh7 {[%clk 0:00:43.2]} 27. Qg5 {[%clk 0:00:48.4]} 27...
gxh6 {[%clk 0:00:37.6]} 28. Qxh5 {[%clk 0:00:49]} 28... Qe6 {[%clk 0:00:37.4]}
29. e5 {[%clk 0:00:40.6]} 29... Qg6 {[%clk 0:00:35.4]} 30. Qf3 {[%clk
0:00:36.9]} 30... dxe5 {[%clk 0:00:25.2]} 31. fxe5 {[%clk 0:00:37.9]} 31... Rad8
{[%clk 0:00:22.7]} 32. Qf4 {[%clk 0:00:23.5]} 32... Rxd1 {[%clk 0:00:18.6]} 33.
Rxd1 {[%clk 0:00:24.6]} 33... Re7 {[%clk 0:00:17.8]} 34. Rf1 {[%clk 0:00:20.1]}
34... Rd7 {[%clk 0:00:14.8]} 35. h3 {[%clk 0:00:20.9]} 35... Re7 {[%clk
0:00:14.2]} 36. Kh2 {[%clk 0:00:21.7]} 36... Rd7 {[%clk 0:00:14.7]} 37. Rf3
{[%clk 0:00:22.9]} 37... Qg5 {[%clk 0:00:12.8]} 38. Qxg5 {[%clk 0:00:19.1]}
38... hxg5 {[%clk 0:00:13.2]} 39. Rf6 {[%clk 0:00:21]} 39... Kg7 {[%clk
0:00:12.6]} 40. Rxc6 {[%clk 0:00:21.8]} 40... Rd2 {[%clk 0:00:13.1]} 41. Rxc7
{[%clk 0:00:17.6]} 41... Kg6 {[%clk 0:00:14.2]} 42. a4 {[%clk 0:00:14.9]} 42...
Re2 {[%clk 0:00:12.7]} 43. Rc5 {[%clk 0:00:15.4]} 43... Re3 {[%clk 0:00:12.6]}
44. Rxa5 {[%clk 0:00:14.6]} 44... Rxb3 {[%clk 0:00:13.3]} 45. Rb5 {[%clk
0:00:15.9]} 45... Ra3 {[%clk 0:00:12.7]} 46. a5 {[%clk 0:00:17.2]} 46... Kf5
{[%clk 0:00:13.7]} 47. Rc5 {[%clk 0:00:07.5]} 47... Ke4 {[%clk 0:00:12.8]} 48.
Rb5 {[%clk 0:00:05.1]} 48... Kd4 {[%clk 0:00:12.1]} 49. e6 {[%clk 0:00:05.5]}
49... fxe6 {[%clk 0:00:12.7]} 50. Rxg5 {[%clk 0:00:07.4]} 50... e5 {[%clk
0:00:11.8]} 51. h4 {[%clk 0:00:07.2]} 51... Rxa5 {[%clk 0:00:11.2]} 52. h5
{[%clk 0:00:07.2]} 52... Ra7 {[%clk 0:00:11.1]} 53. c5 {[%clk 0:00:06.8]} 53...
e4 {[%clk 0:00:11.6]} 54. c6 {[%clk 0:00:06.8]} 54... Rc7 {[%clk 0:00:11.1]} 55.
Rg6 {[%clk 0:00:07.8]} 55... e3 {[%clk 0:00:11.2]} 56. Re6 {[%clk 0:00:08.3]}
56... Kd3 {[%clk 0:00:10.4]} 57. h6 {[%clk 0:00:09.6]} 57... e2 {[%clk 0:00:11]}
58. Rd6+ {[%clk 0:00:08.3]} 58... Ke3 {[%clk 0:00:11.2]} 59. Re6+ {[%clk
0:00:09.6]} 59... Kf2 {[%clk 0:00:12.2]} 60. Rf6+ {[%clk 0:00:10.2]} 60... Ke3
{[%clk 0:00:12.9]} 61. Re6+ {[%clk 0:00:08]} 61... Kf2 {[%clk 0:00:13.6]} 62. g4
{[%clk 0:00:08.1]} 62... Rxc6 {[%clk 0:00:10.9]} 63. Rxc6 {[%clk 0:00:03.7]}
63... e1=Q {[%clk 0:00:10.8]} 64. Rf6+ {[%clk 0:00:04.9]} 1-0